bitfinex/quotes_ETHUSD_20250323
["timestamp","ask_amount","ask_price","bid_price","bid_amount"]
[1742753633018,6.80047202,1994.7,1994.5,4.725]
[1742753633180,0.29134901,1994.6,1994.5,4.725]
[1742753633522,0.2914392,1994.6,1994.5,4.725]
[1742753633707,6.80047202,1994.7,1994.5,4.725]
[1742753633915,0.2914392,1994.6,1994.5,4.725]
[1742753634084,1.78716202,1994.7,1994.5,4.725]
[1742753634287,0.29152939,1994.6,1994.5,4.725]
[1742753634613,1.78716202,1994.7,1994.5,4.725]
[1742753634784,0.29152939,1994.6,1994.5,4.725]
[1742753634977,1.78716202,1994.7,1994.5,4.725]
[1742753635181,0.29134901,1994.6,1994.5,4.725]
[1742753635403,1.78716202,1994.7,1994.5,4.725]
[1742753635610,0.29134901,1994.6,1994.5,4.725]
[1742753636015,1.78716202,1994.7,1994.5,4.725]
[1742753636313,0.29152939,1994.6,1994.5,4.725]
[1742753636502,1.78716202,1994.7,1994.5,4.725]
[1742753636707,0.29170976,1994.6,1994.5,4.725]
[1742753636910,1.78716202,1994.7,1994.5,4.725]
[1742753637207,0.29170976,1994.6,1994.5,4.725]
[1742753637617,1.78716202,1994.7,1994.5,4.725]
[1742753637822,0.2917976,1994.6,1994.5,4.725]
[1742753638187,1.78716202,1994.7,1994.5,4.725]
[1742753638519,0.29188778,1994.6,1994.5,4.725]
[1742753638714,1.78716202,1994.7,1994.5,4.725]
[1742753638919,0.2917976,1994.6,1994.5,4.725]
[1742753639122,1.78716202,1994.7,1994.5,4.725]
[1742753639431,0.29188778,1994.6,1994.5,4.725]
[1742753639723,1.78716202,1994.7,1994.5,4.725]
[1742753639911,0.29188778,1994.6,1994.5,4.725]
[1742753640112,1.78716202,1994.7,1994.5,4.725]
[1742753640314,0.29188778,1994.6,1994.5,4.725]
[1742753640514,1.78716202,1994.7,1994.5,4.725]
[1742753640715,0.29170741,1994.6,1994.5,4.725]
[1742753640896,1.78716202,1994.7,1994.5,4.725]
[1742753641100,0.2917976,1994.6,1994.5,4.725]
[1742753641293,1.78716202,1994.7,1994.5,4.725]
[1742753641496,0.29161723,1994.6,1994.5,4.725]
[1742753641694,1.78716202,1994.7,1994.5,4.725]
[1742753641997,0.29188778,1994.6,1994.5,4.725]
[1742753642340,1.78716202,1994.7,1994.5,4.725]
[1742753642626,0.29170741,1994.6,1994.5,4.725]
[1742753642929,1.78716202,1994.7,1994.5,4.725]
[1742753643105,0.29152704,1994.6,1994.5,4.725]
[1742753643322,1.78716202,1994.7,1994.5,4.725]
[1742753643522,0.29161723,1994.6,1994.5,4.725]
[1742753643726,1.78716202,1994.7,1994.5,4.725]
[1742753643923,0.2917976,1994.6,1994.5,4.725]
[1742753644123,1.78716202,1994.7,1994.5,4.725]
[1742753644324,0.29143684,1994.6,1994.5,4.725]
[1742753644646,1.78716202,1994.7,1994.5,4.725]
[1742753644944,2.07859886,1994.6,1994.5,4.725]
[1742753650139,7.09212886,1994.6,1994.5,4.725]
[1742753650924,7.09212886,1994.6,1994.3,26.512]
[1742753651231,1.78716202,1994.5,1994.3,26.512]
[1742753651779,0.29053719,1994.4,1994.3,27.062]
[1742753652262,0.29053719,1994.4,1994.3,32.07627]
[1742753652579,0.29053719,1994.4,1994.3,27.062]
[1742753652723,2.07769921,1994.4,1994.3,26.512]
[1742753654485,2.05769921,1994.4,1994.3,26.512]
[1742753656064,0.27053719,1994.4,1994.3,26.512]
[1742753656833,0.27053719,1994.4,1994.2,9.73843]
[1742753661243,0.27053719,1994.4,1994.2,14.75279]
[1742753661563,0.27053719,1994.4,1994.3,5.01429]
[1742753662058,0.27053719,1994.4,1994.3,7.08969695]
[1742753662260,0.27053719,1994.4,1994.3,7.859655]
[1742753662459,5.01212,1995.2,1994.8,5.01283]
[1742753662662,1.78716202,1995.0,1994.8,5.83293]
[1742753662869,1.78716202,1994.9,1994.8,5.83293]
[1742753663237,1.78716202,1995.0,1994.8,5.83293]
[1742753663453,1.78716202,1994.9,1994.8,5.83293]
[1742753663861,1.78716202,1994.9,1994.8,0.8201]
[1742753664866,1.78716202,1994.9,1994.7,9.73626]
[1742753665030,5.01253,1995.0,1994.7,9.73626]
[1742753665233,1.78716202,1994.8,1994.7,10.28626]
[1742753665459,1.78716202,1994.8,1994.7,11.898247]
[1742753666572,1.78716202,1994.9,1994.8,5.01303]
[1742753668172,2.05295947,1994.9,1994.7,11.898247]
[1742753669058,2.05295947,1994.9,1994.7,6.884987]
[1742753669270,2.05295947,1994.9,1994.7,5.273]
[1742753671368,2.05295947,1994.9,1994.7,10.28622]
[1742753672978,2.05295947,1994.9,1994.7,5.273]
[1742753679392,0.26579745,1994.9,1994.8,5.56303]
[1742753680499,0.26579745,1994.9,1994.8,0.55]
[1742753683702,2.05295947,1994.9,1994.8,0.55]
[1742753686323,2.05295947,1994.9,1994.7,4.723]
[1742753686598,2.05295947,1994.9,1994.7,31.231]
[1742753687303,1.78716202,1994.8,1994.7,31.781]
[1742753687472,7.06573947,1994.9,1994.7,31.781]
[1742753687796,0.26682613,1994.8,1994.7,31.781]
[1742753687998,6.79994202,1994.9,1994.7,31.781]
[1742753688169,0.26682613,1994.8,1994.7,31.781]
[1742753688369,1.78716202,1994.9,1994.7,31.781]
[1742753688601,0.26682613,1994.8,1994.7,31.781]
[1742753688779,1.78716202,1994.9,1994.7,31.781]
[1742753688985,0.26682613,1994.8,1994.7,31.781]
[1742753689182,1.78716202,1994.9,1994.7,31.781]
[1742753689383,0.26682613,1994.8,1994.7,31.781]
[1742753689593,1.78716202,1994.9,1994.7,31.781]
[1742753689767,0.26682613,1994.8,1994.7,31.781]
[1742753689971,1.78716202,1994.9,1994.7,31.781]
[1742753690174,0.26682613,1994.8,1994.7,31.781]
[1742753690489,1.78716202,1994.9,1994.7,31.781]
[1742753690818,0.26682613,1994.8,1994.7,31.781]
[1742753691098,1.78716202,1994.9,1994.7,31.781]
[1742753691401,0.26682613,1994.8,1994.7,31.781]
[1742753691582,1.78716202,1994.9,1994.7,31.781]
[1742753691788,0.26684809,1994.8,1994.7,31.781]
[1742753692029,1.78716202,1994.9,1994.7,31.781]
[1742753692196,0.26684809,1994.8,1994.7,31.781]
[1742753692394,1.78716202,1994.9,1994.7,31.781]
[1742753692598,0.26684809,1994.8,1994.7,31.781]
[1742753692768,6.79979202,1995.0,1994.7,31.781]
[1742753692972,0.26723188,1994.9,1994.7,31.781]
[1742753695911,0.26723188,1994.9,1994.7,5.273]
[1742753696208,0.26723188,1994.9,1994.7,6.383646]
[1742753696406,0.26723188,1994.9,1994.8,5.56303]
[1742753696709,2.24756202,1995.3,1994.9,5.01273]
[1742753696907,1.78716202,1995.4,1995.0,5.01228]
[1742753697105,0.26971558,1995.2,1995.0,5.77638]
[1742753697276,1.78716202,1995.3,1995.0,6.35903033]
[1742753697476,0.26933198,1995.1,1995.0,6.35903033]
[1742753697678,1.78716202,1995.3,1995.0,6.35903033]
[1742753697903,0.26933198,1995.1,1995.0,6.35903033]
[1742753698107,1.78716202,1995.3,1995.0,6.35903033]
[1742753698306,0.26933198,1995.1,1995.0,6.32638]
[1742753698489,2.24756202,1995.5,1995.2,5.01198]
[1742753698807,2.05764469,1995.4,1995.2,4.721]
[1742753699011,2.05764469,1995.4,1995.3,0.55]
[1742753699910,0.27048267,1995.4,1995.3,1.3141]
[1742753700105,0.27048267,1995.4,1995.3,2.418809]
[1742753700308,1.78716202,1995.4,1995.3,0.55]
[1742753700512,2.05990262,1995.4,1995.3,0.55]
[1742753700813,2.05990262,1995.4,1995.2,9.73284]
[1742753700814,7.07146262,1995.4,1995.2,4.721]
[1742753700990,1.78716202,1995.3,1995.1,4.721]
[1742753701191,2.0591808,1995.2,1995.1,4.721]
[1742753702512,0.27201878,1995.2,1995.1,4.721]
[1742753704901,0.27201878,1995.2,1995.0,9.73235]
[1742753705097,0.27201878,1995.2,1995.0,11.338272]
[1742753705299,1.78716202,1995.3,1995.0,11.338272]
[1742753705615,1.78716202,1995.2,1995.0,6.875922]
[1742753705820,0.27275567,1995.1,1995.0,6.875922]
[1742753706000,1.78716202,1995.4,1995.2,0.55]
[1742753706201,0.27343252,1995.3,1995.2,0.55]
[1742753706602,2.06059454,1995.3,1995.2,0.55]
[1742753708019,0.27343252,1995.3,1995.2,5.56202]
[1742753708204,1.78716202,1995.5,1995.2,11.36865]
[1742753708404,0.27381592,1995.4,1995.2,6.35663]
[1742753708599,0.27381592,1995.4,1995.2,7.49352]
[1742753709028,2.06097794,1995.4,1995.2,7.49352]
[1742753709505,0.27381592,1995.4,1995.2,7.49352]
[1742753710097,0.27381592,1995.4,1995.3,8.14373202]
[1742753710509,1.78716202,1995.8,1995.6,0.55]
[1742753710725,1.78716202,1995.8,1995.6,5.269]
[1742753710996,0.27592119,1995.7,1995.6,11.07466]
[1742753712909,0.27592119,1995.7,1995.6,12.683234]
[1742753713299,1.78716202,1995.9,1995.6,12.683234]
[1742753713640,1.78716202,1996.0,1995.8,0.55]
[1742753713862,2.06490294,1995.9,1995.8,0.55]
[1742753714003,0.27774092,1995.9,1995.8,0.55]
[1742753714408,0.27774092,1995.9,1995.8,1.106064]
[1742753714604,2.24756202,1996.2,1995.9,5.01018]
[1742753714835,0.25497858,1996.1,1995.9,5.01018]
[1742753715148,0.25497858,1996.1,1995.9,5.80498]
[1742753715963,2.0421406,1996.1,1995.9,5.80498]
[1742753716643,0.25497858,1996.1,1995.9,5.80498]
[1742753717011,0.25497858,1996.1,1996.0,5.01002]
[1742753717206,1.78716202,1996.3,1996.0,10.27802]
[1742753717409,0.25747,1996.2,1996.0,10.27802]
[1742753717911,2.04463202,1996.2,1996.0,10.27802]
[1742753718939,1.78716202,1996.1,1996.0,5.268]
[1742753719330,2.03921588,1996.1,1996.0,5.268]
[1742753720350,2.03921588,1996.1,1996.0,6.63804187]
[1742753720549,0.25205386,1996.1,1996.0,6.63804187]
[1742753721957,0.25205386,1996.1,1996.0,11.64806187]
[1742753722843,1.78716202,1996.3,1996.0,11.64806187]
[1742753723026,2.03986934,1996.2,1996.0,11.64806187]
[1742753723219,0.25270732,1996.2,1996.1,1.16480619]
[1742753723436,0.4604,1996.4,1996.1,1.16480619]
[1742753723437,1.78716202,1996.3,1996.1,1.16480619]
[1742753723632,0.25252723,1996.2,1996.1,1.16480619]
[1742753723926,2.03968925,1996.2,1996.1,1.16480619]
[1742753725765,0.25252723,1996.2,1996.1,1.16480619]
[1742753727659,2.03968925,1996.2,1996.1,1.16480619]
[1742753729234,2.03968925,1996.2,1996.0,6.63804187]
[1742753731061,1.78716202,1996.1,1996.0,6.63804187]
[1742753731467,2.04007785,1996.1,1996.0,6.63804187]
[1742753732568,0.25291583,1996.1,1996.0,6.63804187]
[1742753734757,0.25291583,1996.1,1996.0,5.268]
[1742753735065,2.50047785,1996.1,1995.9,26.493]
[1742753735249,1.78716202,1996.0,1995.9,26.493]
[1742753735438,2.0396945,1996.0,1995.9,26.493]
[1742753736266,7.0497145,1996.0,1995.9,26.493]
[1742753741967,2.0396945,1996.0,1995.9,26.493]
[1742753743452,7.0497145,1996.0,1995.9,26.493]
[1742753746988,7.5101145,1996.0,1995.9,26.493]
[1742753747689,5.01035,1995.9,1995.5,6.0601]
[1742753747990,1.78716202,1995.7,1995.5,11.07137]
[1742753748289,0.25035918,1995.6,1995.5,11.07137]
[1742753748489,1.78716202,1995.7,1995.5,11.07137]
[1742753748658,0.25035918,1995.6,1995.5,12.15304018]
[1742753748857,1.78716202,1995.7,1995.5,12.15304018]
[1742753749059,0.25035918,1995.6,1995.5,12.15304018]
[1742753749271,1.78716202,1995.7,1995.5,12.15304018]
[1742753749470,0.25035918,1995.6,1995.5,7.43704018]
[1742753749692,1.78716202,1995.7,1995.5,12.15304018]
[1742753749891,0.25035918,1995.6,1995.5,7.43704018]
[1742753750093,0.25035918,1995.6,1995.5,12.15304018]
[1742753750290,1.78716202,1995.7,1995.5,7.43704018]
[1742753750472,0.25035918,1995.6,1995.5,12.15304018]
[1742753750662,1.78716202,1995.7,1995.5,12.15304018]
[1742753750864,0.25035918,1995.6,1995.5,12.15304018]
[1742753751077,1.78716202,1995.7,1995.5,12.15304018]
[1742753751270,0.25035918,1995.6,1995.5,12.15304018]
[1742753751475,1.78716202,1995.7,1995.5,11.07137]
[1742753751698,0.25035918,1995.6,1995.5,11.07137]
[1742753752080,1.78716202,1995.7,1995.5,11.07137]
[1742753752396,0.25035918,1995.6,1995.5,11.07137]
[1742753752690,1.78716202,1995.7,1995.4,32.51997599]
[1742753752885,2.0373447,1995.6,1995.4,32.51997599]
[1742753753087,2.0373447,1995.6,1995.4,31.50442]
[1742753754373,1.78716202,1995.5,1995.4,26.493]
[1742753754595,1.78716202,1995.5,1995.4,31.209]
[1742753754994,2.03687293,1995.5,1995.4,31.209]
[1742753755968,0.24971091,1995.5,1995.4,31.209]
[1742753758281,6.79805202,1995.7,1995.4,31.209]
[1742753758603,0.24980771,1995.6,1995.4,31.209]
[1742753758772,6.79805202,1995.7,1995.4,35.468902]
[1742753758966,0.24980771,1995.6,1995.4,35.468902]
[1742753759179,1.78716202,1995.9,1995.5,6.37807]
[1742753759398,1.78716202,1995.9,1995.6,5.011]
[1742753759701,12.72579,1996.1,1995.7,6.37757]
[1742753759702,0.2506188,1995.8,1995.7,6.37757]
[1742753760017,1.78716202,1996.0,1995.7,7.516415]
[1742753760376,0.25100222,1995.9,1995.8,5.56052]
[1742753760697,1.78716202,1996.1,1995.8,5.56052]
[1742753760883,0.25145179,1996.0,1995.8,10.57087]
[1742753761088,0.25145179,1996.0,1995.8,5.56035]
[1742753761289,2.03861381,1996.0,1995.8,5.56035]
[1742753761471,2.03861381,1996.0,1995.8,6.8130245]
[1742753761678,0.25145179,1996.0,1995.8,6.8130245]
[1742753761988,0.25137719,1995.9,1995.8,6.8130245]
[1742753762189,1.78716202,1996.1,1995.8,6.8130245]
[1742753762512,0.25176058,1996.0,1995.8,11.5290245]
[1742753765302,0.25176058,1996.0,1995.9,7.47797245]
[1742753765615,1.78716202,1996.3,1996.0,10.01977]
[1742753765783,2.04004217,1996.2,1996.0,5.00987]
[1742753767420,2.04004217,1996.2,1995.9,33.97294245]
[1742753767620,2.04004217,1996.2,1995.9,38.98307245]
[1742753768817,2.04004217,1996.2,1996.0,3.89830725]
[1742753771316,0.25288015,1996.2,1996.0,3.89830725]
[1742753771516,2.04004217,1996.2,1996.0,8.90816725]
[1742753771703,0.25288015,1996.2,1996.0,8.90816725]
[1742753772105,0.25288015,1996.2,1996.1,5.00976]
[1742753772303,1.78716202,1996.4,1996.1,6.40656234]
[1742753772505,0.25382022,1996.3,1996.1,6.40656234]
[1742753772829,0.25329912,1996.2,1996.1,1.39680234]
[1742753773619,0.25329912,1996.2,1996.1,6.40656234]
[1742753773825,0.25329912,1996.2,1996.1,7.17136234]
[1742753774826,0.25329912,1996.2,1996.1,7.72136234]
[1742753775121,1.78716202,1996.4,1996.2,0.55]
[1742753775327,1.78716202,1996.4,1996.2,1.37713623]
[1742753776203,6.79599202,1996.5,1996.2,1.37713623]
[1742753776409,1.78716202,1996.4,1996.2,1.37713623]
[1742753777131,5.00883,1996.5,1996.2,11.10057623]
[1742753777132,1.78716202,1996.5,1996.2,11.10057623]
[1742753777420,1.78716202,1996.5,1996.3,1.11005762]
[1742753777622,6.79568202,1996.6,1996.3,1.11005762]
[1742753777929,5.00852,1996.6,1996.3,1.11005762]
[1742753778226,6.79545202,1996.7,1996.3,6.11930762]
[1742753778434,6.79545202,1996.7,1996.4,0.61193076]
[1742753778806,1.78716202,1996.6,1996.4,0.61193076]
[1742753779326,1.78716202,1996.5,1996.3,1.87485762]
[1742753779730,1.78716202,1996.5,1996.3,1.11005762]
[1742753780240,6.79569202,1996.6,1996.3,1.11005762]
[1742753780440,6.79545202,1996.7,1996.4,0.8168]
[1742753780742,6.79545202,1996.7,1996.4,1.51039776]
[1742753781240,2.24756202,1997.0,1996.5,2.33716202]
[1742753781411,2.24756202,1997.0,1996.6,9.72236]
[1742753781742,1.78716202,1996.9,1996.6,10.53914]
[1742753782538,6.79442202,1997.1,1996.7,5.55812]
[1742753782838,1.78716202,1997.0,1996.8,0.555812]
[1742753783040,10.01471,1997.1,1996.8,0.555812]
[1742753783041,12.98638445,1997.1,1996.8,0.555812]
[1742753783946,7.97893445,1997.1,1996.8,0.555812]
[1742753784545,12.98638445,1997.1,1996.8,0.555812]
[1742753784846,7.97893445,1997.1,1996.8,0.555812]
[1742753785223,8.43914445,1997.2,1996.8,5.563782]
[1742753785419,13.44636445,1997.2,1996.9,0.5563782]
[1742753785747,5.00726,1997.1,1996.9,0.5563782]
[1742753786353,7.97893445,1997.1,1996.9,0.5563782]
[1742753786557,5.00726,1997.1,1996.8,0.555812]
[1742753786717,5.00707,1997.2,1996.8,11.388392]
[1742753787126,5.00707,1997.2,1996.8,6.380482]
[1742753787436,10.01425,1997.2,1996.8,6.380482]
[1742753787750,12.98592445,1997.2,1996.8,6.380482]
[1742753788046,0.26118939,1997.1,1996.9,0.6380482]
[1742753788246,7.97874445,1997.2,1996.9,0.6380482]
[1742753788445,0.2618191,1997.1,1996.9,0.6380482]
[1742753788746,12.98594445,1997.2,1996.9,0.6380482]
[1742753789046,5.00726,1997.1,1996.9,0.6380482]
[1742753789346,0.26143631,1997.0,1996.9,0.6380482]
[1742753790116,7.97875445,1997.2,1996.9,0.6380482]
[1742753790314,0.2618191,1997.1,1996.9,0.6380482]
[1742753790515,7.97875445,1997.2,1996.9,0.6380482]
[1742753790725,0.2618191,1997.1,1996.9,0.6380482]
[1742753790926,5.2690991,1997.1,1996.9,0.6380482]
[1742753791149,5.00728,1997.1,1996.8,1.372612]
[1742753791310,0.26143631,1997.0,1996.8,1.372612]
[1742753792652,5.26894631,1997.0,1996.8,0.555812]
[1742753792863,8.24062076,1997.0,1996.8,4.712]
[1742753795432,5.00776,1996.9,1996.8,4.712]
[1742753795633,0.26189863,1996.9,1996.8,4.712]
[1742753798696,0.26189863,1996.9,1996.8,5.262]
[1742753798878,5.00701,1997.2,1996.8,12.158418]
[1742753799085,0.26347397,1997.1,1996.8,38.640418]
[1742753799397,5.00701,1997.2,1996.8,38.640418]
[1742753799545,0.26309118,1997.0,1996.8,38.640418]
[1742753799749,5.00701,1997.2,1996.8,41.61209245]
[1742753799948,5.00701,1997.2,1996.9,4.16120925]
[1742753800277,5.46716,1997.3,1996.9,4.16120925]
[1742753800481,5.00676,1997.3,1996.9,9.16895925]
[1742753800687,5.1223686,1997.4,1997.0,5.00745]
[1742753800688,10.1290286,1997.4,1997.0,5.00745]
[1742753801000,10.1290286,1997.4,1997.1,0.500745]
[1742753801285,0.1158586,1997.4,1997.1,0.500745]
[1742753801489,5.00679,1997.3,1997.1,0.500745]
[1742753801664,0.1158586,1997.4,1997.3,5.00675]
[1742753802266,0.1158586,1997.4,1997.3,4.711]
[1742753803182,0.35928976,1997.4,1997.3,4.711]
[1742753804402,0.35928976,1997.4,1997.2,6.0674]
[1742753804561,0.35928976,1997.4,1997.3,0.60674]
[1742753807023,5.36578976,1997.4,1997.3,0.60674]
[1742753807172,5.36578976,1997.4,1997.2,5.261]
[1742753807668,0.35928976,1997.4,1997.2,5.261]
[1742753809989,5.36581976,1997.4,1997.2,5.261]
[1742753810699,5.00675,1997.3,1997.2,4.711]
[1742753811000,5.00712,1997.2,1997.0,4.71]
[1742753811300,0.24295759,1997.1,1997.0,4.71]
[1742753811498,12.98600445,1997.2,1997.0,4.71]
[1742753811703,0.24295759,1997.1,1997.0,4.71]
[1742753812199,7.97879445,1997.2,1997.0,4.71]
[1742753812391,0.24295759,1997.1,1997.0,4.71]
[1742753812780,7.97879445,1997.2,1997.0,4.71]
[1742753813080,0.24295759,1997.1,1997.0,4.71]
[1742753813482,7.97879445,1997.2,1997.0,4.71]
[1742753813685,0.24295759,1997.1,1997.0,4.71]
[1742753813880,7.97879445,1997.2,1997.0,4.71]
[1742753814077,0.24295759,1997.1,1997.0,4.71]
[1742753814281,7.97879445,1997.2,1997.0,4.71]
[1742753814470,0.24295759,1997.1,1997.0,4.71]
[1742753814875,7.97879445,1997.2,1997.0,4.71]
[1742753815103,0.24295759,1997.1,1997.0,4.71]
[1742753815306,7.97879445,1997.2,1997.0,4.71]
[1742753815507,0.24295759,1997.1,1997.0,4.71]
[1742753815810,7.97879445,1997.2,1997.0,4.71]
[1742753816110,0.24295759,1997.1,1997.0,4.71]
[1742753816309,7.97879445,1997.2,1997.0,4.71]
[1742753816511,0.24317892,1997.1,1997.0,4.71]
[1742753816673,7.97879445,1997.2,1997.0,4.71]
[1742753816878,0.24317892,1997.1,1997.0,4.71]
[1742753817092,7.97879445,1997.2,1997.0,4.71]
[1742753817410,0.24317892,1997.1,1997.0,4.71]
[1742753817804,7.97879445,1997.2,1997.0,4.71]
[1742753818000,0.24245937,1997.1,1997.0,4.71]
[1742753818390,5.00712,1997.2,1997.0,4.71]
[1742753818609,0.24236942,1997.1,1997.0,4.71]
[1742753819114,5.00712,1997.2,1997.0,4.71]
[1742753819307,0.24236942,1997.1,1997.0,4.71]
[1742753819608,5.00712,1997.2,1997.0,4.71]
[1742753819786,0.24236942,1997.1,1997.0,4.71]
[1742753820189,5.00712,1997.2,1997.0,4.71]
[1742753820489,0.24236942,1997.1,1997.0,4.71]
[1742753820716,5.00712,1997.2,1997.0,4.71]
[1742753820910,0.24236942,1997.1,1997.0,4.71]
[1742753821100,7.97879445,1997.2,1997.0,4.71]
[1742753821301,0.24236942,1997.1,1997.0,4.71]
[1742753821505,7.97879445,1997.2,1997.0,4.71]
[1742753821811,0.24236942,1997.1,1997.0,4.71]
[1742753822012,0.24236942,1997.1,1997.0,10.18851]
[1742753822185,7.97844445,1997.3,1997.0,5.9578]
[1742753822389,0.24236942,1997.1,1997.0,5.4868]
[1742753822587,7.97844445,1997.3,1997.0,5.4868]
[1742753822798,0.24245798,1997.1,1997.0,5.4868]
[1742753822999,7.97844445,1997.3,1997.0,5.4868]
[1742753823185,0.24245798,1997.1,1997.0,5.4868]
[1742753823384,7.97844445,1997.3,1997.0,5.4868]
[1742753823608,0.24245798,1997.1,1997.0,5.4868]
[1742753823807,7.97844445,1997.3,1997.0,5.4868]
[1742753824323,0.2429307,1997.2,1997.0,5.4868]
[1742753827619,5.2499407,1997.2,1997.0,5.4868]
[1742753828226,5.2499407,1997.2,1997.0,4.71]
[1742753828518,2.97167445,1997.1,1997.0,4.71]
[1742753828721,5.0076,1997.0,1996.8,26.482]
[1742753828919,2.0229192,1996.9,1996.8,26.482]
[1742753831037,0.23946642,1996.9,1996.8,26.482]
[1742753838530,0.23946642,1996.9,1996.7,31.187]
[1742753838739,0.23946642,1996.9,1996.8,3.1187]
[1742753839228,0.23946642,1996.9,1996.7,31.187]
[1742753843635,10.25520642,1996.9,1996.7,31.187]
[1742753843841,5.24725642,1996.9,1996.7,31.187]
[1742753845319,5.00801,1996.8,1996.7,26.478]
[1742753845520,5.22458357,1996.8,1996.7,26.478]
[1742753848842,0.21657357,1996.8,1996.7,26.478]
[1742753852826,1.99990477,1996.8,1996.7,26.478]
[1742753853012,1.99990477,1996.8,1996.6,5.6943773]
[1742753858329,1.99990477,1996.8,1996.6,9.41268603]
[1742753860546,7.00793477,1996.8,1996.6,9.41268603]
[1742753860853,1.99990477,1996.8,1996.6,9.41268603]
[1742753865049,1.99990477,1996.8,1996.6,14.42108603]
[1742753865254,0.21657357,1996.8,1996.7,0.7511]
[1742753865455,0.21657357,1996.8,1996.7,9.51137207]
[1742753865824,1.7833312,1997.3,1997.1,5.75827]
[1742753866029,2.0011697,1997.2,1997.1,0.7511]
[1742753866541,2.0011697,1997.2,1997.1,5.75836]
[1742753866767,2.0011697,1997.2,1997.1,0.7511]
[1742753866937,2.0011697,1997.2,1997.0,9.71533]
[1742753867260,1.7833312,1997.1,1997.0,11.812748]
[1742753867623,2.00151885,1997.1,1997.0,11.812748]
[1742753867857,2.00151885,1997.1,1997.0,6.805418]
[1742753869758,2.46191885,1997.1,1997.0,4.708]
[1742753870068,7.46917885,1997.1,1997.0,4.708]
[1742753877879,7.46917885,1997.1,1996.8,26.479]
[1742753877880,5.00761,1997.0,1996.8,26.479]
[1742753878052,8.5744224,1996.9,1996.8,26.479]
[1742753878251,8.79195338,1996.9,1996.8,26.479]
[1742753878458,9.25235338,1996.9,1996.8,26.479]
[1742753879878,5.46939,1996.5,1996.3,4.707]
[1742753880076,5.00926,1996.3,1996.2,26.479]
[1742753880246,6.7925912,1996.3,1996.2,26.479]
[1742753880449,7.00149299,1996.3,1996.2,26.479]
[1742753880851,8.65351877,1996.3,1996.2,26.479]
[1742753881050,8.65351877,1996.3,1995.6,5.01101]
[1742753881051,5.01017,1996.0,1995.6,5.76251]
[1742753881360,3.18105306,1995.9,1995.7,0.55]
[1742753881759,3.18105306,1995.9,1995.6,36.94851]
[1742753881948,3.18105306,1995.9,1995.7,0.55]
[1742753882149,3.18105306,1995.9,1995.6,36.94851]
[1742753882582,3.18105306,1995.9,1995.7,0.55]
[1742753883276,3.18105306,1995.9,1995.7,4.800933]
[1742753883277,0.20609608,1995.9,1995.7,4.800933]
[1742753883589,0.20609608,1995.9,1995.7,9.811673]
[1742753884894,0.20609608,1995.9,1995.7,9.261673]
[1742753886089,0.20609608,1995.9,1995.7,4.250933]
[1742753889192,0.20609608,1995.9,1995.7,9.261663]
[1742753889399,0.20609608,1995.9,1995.8,0.9261663]
[1742753889590,0.20609608,1995.9,1995.8,7.2673863]
[1742753889794,7.98409698,1996.4,1995.9,5.01008]
[1742753890096,0.20484026,1996.3,1996.1,0.7807]
[1742753890499,8.44411698,1996.5,1996.1,5.79044]
[1742753890686,0.20445671,1996.2,1996.1,6.34044]
[1742753890896,5.00877,1996.5,1996.1,6.34044]
[1742753891067,5.00877,1996.5,1996.1,32.82844]
[1742753891270,0.20707137,1996.4,1996.2,3.282844]
[1742753891791,0.20707137,1996.4,1996.2,8.292354]
[1742753891983,12.99230698,1996.6,1996.2,8.292354]
[1742753892192,0.20745475,1996.5,1996.2,8.292354]
[1742753893772,0.20745475,1996.5,1996.3,5.00926]
[1742753893979,0.20745475,1996.5,1996.3,6.34443046]
[1742753894180,0.20745475,1996.5,1996.4,4.709]
[1742753894406,0.20745475,1996.5,1996.4,5.4897]
[1742753896208,0.20745475,1996.5,1996.4,4.709]
[1742753896707,5.21621475,1996.5,1996.4,4.709]
[1742753897387,5.21621475,1996.5,1996.3,4.708]
[1742753897708,10.22517475,1996.5,1996.3,4.708]
[1742753898913,5.00901,1996.4,1996.3,4.708]
[1742753899208,5.1987503,1996.4,1996.3,4.708]
[1742753899916,5.1987503,1996.4,1996.2,0.7738]
[1742753900094,5.1987503,1996.4,1996.2,5.4818]
[1742753900643,0.1897403,1996.4,1996.2,5.4818]
[1742753900931,0.1897403,1996.4,1996.2,9.234755]
[1742753901333,8.17385728,1996.4,1996.2,5.4818]
[1742753901541,5.00951,1996.2,1996.1,26.488]
[1742753901686,7.98446698,1996.2,1996.1,26.488]
[1742753901885,8.17293598,1996.2,1996.1,26.488]
[1742753902632,8.63333598,1996.2,1996.1,26.488]
[1742753905331,5.0103,1995.9,1995.6,5.5202]
[1742753905779,0.18520432,1995.8,1995.6,5.5202]
[1742753905983,7.98525698,1995.9,1995.6,5.5202]
[1742753906194,0.18520432,1995.8,1995.6,5.5202]
[1742753906415,7.98525698,1995.9,1995.6,5.5202]
[1742753906724,0.18520432,1995.8,1995.6,5.5202]
[1742753907109,7.98525698,1995.9,1995.6,5.5202]
[1742753907625,0.08520432,1995.8,1995.6,5.5202]
[1742753907929,7.98525698,1995.9,1995.6,5.5202]
[1742753908130,0.18233609,1995.7,1995.6,5.5202]
[1742753908337,7.98525698,1995.9,1995.6,5.5202]
[1742753908518,0.18242605,1995.7,1995.6,5.5202]
[1742753908720,7.98525698,1995.9,1995.6,5.5202]
[1742753908899,0.18251602,1995.7,1995.6,5.5202]
[1742753909104,7.98525698,1995.9,1995.6,5.5202]
[1742753909316,0.18251602,1995.7,1995.6,5.5202]
[1742753909521,8.44565698,1995.9,1995.5,31.50014]
[1742753909823,8.44565698,1995.9,1995.6,4.708]
[1742753909984,0.18280946,1995.8,1995.5,36.20814]
[1742753910189,8.44565698,1995.9,1995.5,36.20814]
[1742753910391,0.18280946,1995.8,1995.5,36.20814]
[1742753910699,8.44565698,1995.9,1995.5,40.5670214]
[1742753910897,0.18224612,1995.7,1995.5,40.5670214]
[1742753911101,7.98525698,1995.9,1995.5,45.5781114]